bitfinex/quotes_SOLUSD_20220302
["timestamp","ask_amount","ask_price","bid_price","bid_amount"]
[1646213117344,22.80838513,103.94,103.86,42.99433352]
[1646213117745,23.05838513,103.94,103.86,42.99433352]
[1646213118543,23.05838513,103.94,103.86,57.43443352]
[1646213118945,6.0,103.94,103.86,57.43443352]
[1646213119144,6.0,103.95,103.86,68.97443352]
[1646213119346,6.25,103.95,103.86,68.97443352]
[1646213119944,6.0,103.95,103.86,68.97443352]
[1646213120149,40.28865863,103.95,103.86,54.53433352]
[1646213120347,62.42642354,103.95,103.86,42.99433352]
[1646213120546,158.18642354,103.95,103.86,42.99433352]
[1646213120747,158.18642354,103.95,103.86,42.74433352]
[1646213120946,187.39739033,103.95,103.86,42.74433352]
[1646213121246,239.7149277,103.95,103.84,24.9842]
[1646213121445,3.85,103.94,103.83,22.8271]
[1646213121648,3.85,103.94,103.83,23.0771]
[1646213121649,14.4478,103.91,103.83,23.0771]
[1646213121848,6.0,103.9,103.83,23.0771]
[1646213122246,6.25,103.9,103.84,46.80471943]
[1646213122446,6.25,103.9,103.84,47.05471943]
[1646213124747,20.6975,103.9,103.84,46.80471943]
[1646213128154,6.0,103.9,103.84,47.05471943]
[1646213128353,6.0,103.91,103.84,47.05471943]
[1646213128756,22.21504376,103.93,103.84,142.81471943]
[1646213128955,19.77117978,103.95,103.84,142.81471943]
[1646213129156,6.0,103.94,103.84,142.81471943]
[1646213129356,6.0,103.95,103.84,154.35471943]
[1646213129556,6.0,103.95,103.85,101.76]
[1646213129760,6.0,103.95,103.87,14.4391]
[1646213129958,6.0,103.95,103.88,49.96504603]
[1646213130160,34.2967253,103.96,103.88,50.21504603]
[1646213130359,34.2967253,103.96,103.88,44.56104603]
[1646213130759,40.76242527,103.96,103.88,44.56104603]
[1646213130963,36.91342527,103.96,103.88,44.56104603]
[1646213131363,6.0,103.95,103.88,44.56104603]
[1646213131563,20.6904,103.95,103.88,44.56104603]
[1646213131965,40.5475253,103.95,103.88,44.56104603]
[1646213133964,44.3965253,103.95,103.88,44.56104603]
[1646213134165,40.5475253,103.95,103.88,44.56104603]
[1646213134566,42.91422527,103.95,103.88,44.56104603]
[1646213135467,56.99102527,103.95,103.88,44.56104603]
[1646213135666,37.13389997,103.95,103.88,44.56104603]
[1646213136269,36.66212527,103.97,103.88,44.56104603]
[1646213136671,34.2954253,103.97,103.88,44.56104603]
[1646213137671,6.0,103.96,103.88,44.56104603]
[1646213137874,20.6898,103.96,103.88,44.56104603]
[1646213138073,23.05649997,103.96,103.88,44.56104603]
[1646213138274,42.91362527,103.96,103.88,44.56104603]
[1646213138474,42.91362527,103.96,103.88,0.25]
[1646213138675,0.15392606,103.95,103.86,0.25]
[1646213138877,4.00292606,103.95,103.84,38.5951]
[1646213139075,14.4437,103.93,103.84,38.5951]
[1646213139274,6.0,103.92,103.84,24.1529]
[1646213139575,2.61669997,103.92,103.85,48.99915881]
[1646213140374,6.0,103.91,103.85,48.99915881]
[1646213140573,6.25,103.91,103.85,48.99915881]
[1646213140773,0.10834653,103.9,103.83,22.7437]
[1646213140975,23.06279997,103.91,103.83,22.7437]
[1646213141176,23.06279997,103.91,103.83,22.9937]
[1646213141177,2.36669997,103.9,103.83,22.9937]
[1646213141374,6.0,103.89,103.83,22.9937]
[1646213141575,6.25,103.89,103.83,22.9937]
[1646213141773,6.25,103.89,103.84,57.13700042]
[1646213141974,6.25,103.89,103.84,57.38700042]
[1646213142677,0.25,103.89,103.84,57.38700042]
[1646213142877,14.6961,103.91,103.84,57.38700042]
[1646213143876,14.6961,103.91,103.84,57.13700042]
[1646213144079,6.0,103.9,103.84,57.13700042]
[1646213144278,6.25,103.9,103.84,57.13700042]
[1646213144680,20.6973,103.9,103.84,57.13700042]
[1646213147181,20.4473,103.9,103.84,57.38700042]
[1646213147787,20.4473,103.9,103.84,57.13700042]
[1646213148587,20.6973,103.9,103.84,57.13700042]
[1646213149589,20.6973,103.9,103.81,26.4282]
[1646213149788,0.15327172,103.89,103.81,26.4282]
[1646213150001,14.4497,103.88,103.81,26.4282]
[1646213150200,6.0,103.87,103.81,26.4282]
[1646213150400,6.25,103.87,103.81,26.4282]
[1646213150604,6.25,103.87,103.82,45.43656567]
[1646213150901,6.0,103.89,103.82,45.68656567]
[1646213151102,6.25,103.89,103.82,45.68656567]
[1646213151701,0.25,103.89,103.82,45.68656567]
[1646213152103,2.36669997,103.89,103.82,45.43656567]
[1646213152302,2.61669997,103.89,103.82,45.43656567]
[1646213152502,6.0,103.88,103.82,45.43656567]
[1646213152702,6.25,103.88,103.82,45.43656567]
[1646213153303,8.61669997,103.88,103.82,45.43656567]
[1646213153603,47.86992508,103.88,103.82,45.43656567]
[1646213154003,51.72092508,103.88,103.81,3.849]
[1646213154203,95.76,103.86,103.73,75.4718]
[1646213154404,14.4593,103.82,103.73,122.9187]
[1646213154604,21.5283,103.82,103.73,47.4469]
[1646213155103,21.5283,103.82,103.74,57.71094888]
[1646213155505,21.5283,103.82,103.74,57.96094888]
[1646213155708,6.0,103.81,103.74,57.96094888]
[1646213155905,6.25,103.81,103.74,57.96094888]
[1646213156807,0.25,103.81,103.74,153.72094888]
[1646213157006,6.0,103.83,103.74,153.72094888]
[1646213157206,6.0,103.83,103.74,72.41754888]
[1646213157408,6.0,103.84,103.74,72.41754888]
[1646213158006,14.4567,103.83,103.74,168.17754888]
[1646213158405,14.4567,103.83,103.74,72.41754888]
[1646213159606,14.7067,103.83,103.74,72.41754888]
[1646213159805,18.5607,103.83,103.74,72.41754888]
[1646213160207,6.0,103.82,103.74,72.41754888]
[1646213160407,6.25,103.82,103.74,72.41754888]
[1646213160812,20.7082,103.82,103.74,72.41754888]
[1646213161407,20.7082,103.82,103.74,57.96094888]
[1646213163610,20.7082,103.82,103.74,57.71094888]
[1646213163810,2.36669997,103.81,103.74,57.71094888]
[1646213164013,20.58893407,103.8,103.74,57.71094888]
[1646213164211,48.1711333,103.8,103.73,47.4469]
[1646213164813,0.13067304,103.79,103.73,47.4469]
[1646213165114,14.4639,103.78,103.7,14.4619]
[1646213165313,14.7139,103.78,103.71,61.36702228]
[1646213165515,14.7139,103.78,103.71,61.61702228]
[1646213167315,14.7139,103.78,103.71,61.36702228]
[1646213168715,14.7139,103.78,103.71,61.61702228]
[1646213169315,6.0,103.77,103.71,61.61702228]
[1646213169515,6.25,103.77,103.71,61.61702228]
[1646213170822,0.25,103.77,103.71,61.61702228]
[1646213171125,14.7139,103.78,103.71,61.61702228]
[1646213172621,38.3191333,103.78,103.71,55.61702228]
[1646213173023,14.7139,103.78,103.71,55.61702228]
[1646213173424,6.0,103.77,103.71,55.61702228]
[1646213173627,6.25,103.77,103.71,55.61702228]
[1646213174323,0.25,103.77,103.71,55.61702228]
[1646213174724,6.25,103.78,103.71,55.61702228]
[1646213175525,6.25,103.78,103.71,55.36702228]
[1646213176526,54.44235841,103.78,103.71,55.36702228]
[1646213177127,54.44235841,103.78,103.71,55.61702228]
[1646213177527,6.25,103.78,103.71,55.61702228]
[1646213177728,20.7134,103.78,103.71,55.61702228]
[1646213178131,20.4634,103.78,103.71,55.61702228]
[1646213179328,6.0,103.78,103.71,55.61702228]
[1646213179528,0.25,103.78,103.71,55.61702228]
[1646213179831,6.25,103.79,103.71,55.61702228]
[1646213180730,6.25,103.79,103.71,151.37702228]
[1646213181130,6.25,103.79,103.71,165.83822228]
[1646213181333,29.8552333,103.79,103.71,165.83822228]
[1646213183233,44.3174333,103.79,103.71,70.07822228]
[1646213183432,68.90455841,103.79,103.71,55.61702228]
[1646213184135,5.0,103.78,103.71,55.61702228]
[1646213184333,6.0,103.77,103.71,55.61702228]
[1646213184735,44.3203333,103.77,103.7,49.3125]
[1646213184934,46.68703337,103.77,103.7,49.5625]
[1646213185734,46.68703337,103.77,103.71,53.98658018]
[1646213186536,20.7151,103.77,103.71,53.98658018]
[1646213187136,6.25,103.77,103.71,54.23658018]
[1646213187335,13.32850416,103.79,103.71,158.84158018]
[1646213187537,20.69520423,103.81,103.73,95.76]
[1646213187736,5.0,103.81,103.74,138.494208]
[1646213187937,5.0,103.81,103.74,146.401208]
[1646213188137,5.0,103.81,103.75,107.3]
[1646213188337,36.01449996,103.85,103.76,58.76535373]
[1646213188538,14.4546,103.85,103.77,14.4527]
[1646213188738,14.4546,103.85,103.77,14.7027]
[1646213188940,14.4546,103.85,103.78,48.93837842]
[1646213189141,14.4546,103.85,103.78,49.18837842]
[1646213189339,14.7046,103.85,103.78,49.18837842]
[1646213189539,6.0,103.84,103.78,49.18837842]
[1646213189739,6.25,103.84,103.78,49.18837842]
[1646213192157,6.25,103.84,103.76,45.746]
[1646213192158,20.7056,103.84,103.76,45.746]
[1646213192355,23.07230007,103.84,103.76,45.996]
[1646213192556,23.07230007,103.84,103.76,45.746]
[1646213192757,45.53609202,103.84,103.76,45.746]
[1646213193157,45.53609202,103.84,103.77,47.04912988]
[1646213193956,58.86459618,103.84,103.77,47.04912988]
[1646213194757,63.86459618,103.84,103.77,47.04912988]
[1646213194957,78.01989618,103.84,103.77,47.04912988]
[1646213195158,73.01989618,103.84,103.77,47.04912988]
[1646213195758,78.01989618,103.84,103.77,47.04912988]
[1646213196662,78.01989618,103.84,103.77,47.29912988]
[1646213196663,36.40080423,103.84,103.77,47.29912988]
[1646213196861,23.07230007,103.84,103.77,47.29912988]
[1646213198164,45.53609202,103.84,103.77,47.29912988]
[1646213200767,23.07230007,103.84,103.77,47.29912988]
[1646213205175,45.53609202,103.84,103.77,47.29912988]
[1646213206276,43.16939195,103.84,103.77,47.29912988]
[1646213207275,43.16939195,103.84,103.77,47.04912988]
[1646213207476,45.53609193,103.84,103.77,47.04912988]
[1646213208979,45.53609193,103.84,103.77,47.29912988]
[1646213210179,50.53609193,103.84,103.77,47.29912988]
[1646213211684,50.53609193,103.84,103.77,47.04912988]
[1646213211882,50.53609193,103.84,103.77,47.29912988]
[1646213212282,0.19836583,103.83,103.77,47.04912988]
[1646213212482,14.4572,103.83,103.77,47.04912988]
[1646213212682,6.0,103.82,103.77,47.04912988]
[1646213212882,6.25,103.82,103.77,47.04912988]
[1646213217505,20.7081,103.82,103.77,47.04912988]
[1646213218087,20.7081,103.82,103.76,45.746]
[1646213218285,0.29132872,103.81,103.76,45.996]
[1646213219087,0.29132872,103.81,103.73,28.1728]
[1646213219288,14.75092872,103.81,103.75,52.41287809]
[1646213219488,14.7096,103.81,103.75,52.41287809]
[1646213220588,6.0,103.8,103.75,52.66287809]
[1646213220788,0.25,103.8,103.75,52.66287809]
[1646213221989,6.25,103.82,103.75,52.66287809]
[1646213222190,6.25,103.82,103.75,148.42287809]
[1646213222389,6.0,103.82,103.75,148.42287809]
[1646213222590,6.0,103.83,103.75,148.42287809]
[1646213222790,6.0,103.84,103.75,64.20287809]
[1646213222991,44.02760343,103.83,103.75,52.66287809]
[1646213223194,6.0,103.82,103.75,52.66287809]
[1646213223392,52.73659193,103.82,103.73,52.127]
[1646213223591,44.02760343,103.81,103.73,27.8072]
[1646213223803,6.1494153,103.8,103.73,27.8072]
[1646213223995,52.64430341,103.8,103.73,27.8072]
[1646213224195,44.02760343,103.79,103.73,27.8072]
[1646213224398,6.0,103.78,103.73,27.8072]
[1646213224597,6.25,103.78,103.73,27.8072]
[1646213224796,20.7139,103.78,103.73,3.853]
[1646213225013,23.08059998,103.78,103.73,3.853]
[1646213225215,45.54439193,103.78,103.68,47.9303]
[1646213225415,80.43670757,103.78,103.68,47.9303]
[1646213225617,0.18709797,103.77,103.68,47.9303]
[1646213225916,14.4713,103.75,103.68,47.9303]
[1646213226116,6.0,103.74,103.68,47.9303]
[1646213226317,8.61669998,103.74,103.65,5.0]
[1646213226516,115.91669998,103.74,103.63,89.1771]
[1646213226716,2.36669998,103.73,103.63,89.1771]
[1646213226920,6.0,103.72,103.63,89.1771]
[1646213227116,20.7228,103.72,103.63,14.4713]
[1646213227318,20.7228,103.72,103.64,44.15636963]
[1646213228320,20.7228,103.72,103.64,44.40636963]
[1646213228518,23.08899893,103.72,103.64,44.40636963]
[1646213229121,44.65281041,103.72,103.62,47.7391]
[1646213229321,3.858,103.71,103.61,0.48236912]
[1646213229524,14.4786,103.68,103.61,0.48236912]
[1646213229722,14.7286,103.68,103.61,0.48236912]
[1646213229922,6.0,103.67,103.61,0.48236912]
[1646213230222,6.25,103.67,103.61,0.48236912]
[1646213230622,8.61619893,103.67,103.61,0.48236912]
[1646213230823,13.61619893,103.67,103.61,0.48236912]
[1646213231024,39.83730447,103.67,103.61,0.48236912]
[1646213231223,82.7239079,103.67,103.61,0.48236912]
[1646213231424,96.0437454,103.67,103.61,0.48236912]
[1646213231624,191.60243986,103.67,103.61,0.48236912]
[1646213231923,5.0,103.65,103.61,0.48236912]
[1646213232127,6.0,103.64,103.61,0.48236912]
[1646213232324,3.03219997,103.63,103.61,0.48236912]
[1646213232524,3.03219997,103.63,103.57,155.85058912]
[1646213232725,3.03219997,103.63,103.59,149.46042512]
[1646213232926,8.86,103.69,103.59,149.46042512]
[1646213233125,6.0,103.68,103.59,53.70042512]
[1646213233327,6.25,103.68,103.59,53.70042512]
[1646213234125,20.7281,103.68,103.59,68.17742512]
[1646213234324,20.7281,103.68,103.59,68.42742512]
[1646213234927,44.65214577,103.68,103.59,68.42742512]
[1646213235726,42.29191148,103.68,103.59,164.18742512]
[1646213235929,6.25,103.68,103.59,164.18742512]
[1646213236130,0.25,103.68,103.6,101.76]
[1646213236328,14.7253,103.7,103.61,154.66623893]
[1646213236529,14.7253,103.7,103.61,154.91623893]
[1646213236728,6.0,103.69,103.61,154.91623893]
[1646213236928,6.25,103.69,103.61,157.46527896]
[1646213237231,36.03911148,103.7,103.61,157.46527896]
[1646213237928,6.0,103.69,103.61,154.91623893]
[1646213238129,36.03911148,103.7,103.61,154.91623893]
[1646213238330,6.0,103.69,103.61,154.91623893]
[1646213238729,36.03911148,103.7,103.61,157.46527896]
[1646213238930,8.859,103.71,103.61,169.00527896]
[1646213239132,5.0,103.71,103.61,169.00527896]
[1646213239329,26.56381148,103.71,103.61,169.00527896]
[1646213239534,6.0,103.7,103.61,61.70527896]
[1646213239733,6.0,103.7,103.61,46.98077896]
[1646213239929,14.4793,103.67,103.61,44.43173893]
[1646213240131,14.7293,103.67,103.61,44.43173893]
[1646213240330,44.61211148,103.67,103.59,23.9059]
[1646213240530,6.0,103.66,103.59,24.1559]
[1646213240731,6.25,103.66,103.59,24.1559]
[1646213240934,20.7305,103.66,103.59,24.1559]
[1646213241332,20.7305,103.66,103.6,57.16084627]
[1646213243133,20.7305,103.66,103.59,23.9059]
[1646213243333,140.41454577,103.66,103.56,23.2664]
[1646213243534,3.86,103.65,103.56,23.2664]
[1646213243733,14.4853,103.63,103.56,23.2664]
[1646213244232,14.7353,103.63,103.56,76.78808663]
[1646213245634,14.7353,103.63,103.56,53.52168663]
[1646213247033,6.0,103.62,103.56,53.52168663]
[1646213247234,6.25,103.62,103.56,53.52168663]
[1646213248037,20.7359,103.62,103.54,47.3921]
[1646213248236,20.7359,103.62,103.55,6.0]
[1646213248436,20.7359,103.62,103.54,47.3921]
[1646213248636,20.7359,103.62,103.54,47.6421]
[1646213248637,26.95713429,103.62,103.54,47.6421]
[1646213249138,26.95713429,103.62,103.54,103.78261311]
[1646213249335,24.5969,103.62,103.54,103.78261311]
[1646213249737,24.5969,103.62,103.55,6.0]
[1646213250638,20.7359,103.62,103.55,6.0]
[1646213250841,35.3513,103.62,103.55,6.0]
[1646213251139,40.3513,103.62,103.55,6.0]
[1646213251338,40.3513,103.62,103.54,47.3921]
[1646213251540,37.71153429,103.62,103.54,47.3921]
[1646213251739,5.0,103.61,103.54,47.3921]
[1646213251941,20.4891,103.6,103.54,47.3921]
[1646213252741,20.4891,103.6,103.55,60.20321089]
[1646213253542,14.4868,103.62,103.55,155.96321089]
[1646213253742,5.0,103.63,103.55,156.21321089]
[1646213253941,36.4654,103.65,103.55,156.21321089]
[1646213253942,28.7864,103.65,103.55,156.21321089]
[1646213254142,3.861,103.65,103.55,177.88481089]
[1646213254342,3.861,103.66,103.57,95.76]
[1646213254542,23.21047815,103.67,103.58,50.67101501]
[1646213254743,23.21047815,103.67,103.58,56.56201501]
[1646213254943,48.36093677,103.67,103.58,56.56201501]
[1646213255146,3.86,103.66,103.58,56.56201501]
[1646213255344,3.86,103.66,103.58,50.92101501]
[1646213255545,28.53381148,103.66,103.58,50.92101501]
[1646213255744,53.6842701,103.66,103.58,50.92101501]
[1646213255946,6.0,103.65,103.58,50.92101501]
[1646213256146,6.25,103.65,103.58,50.92101501]
[1646213256744,6.25,103.65,103.58,50.67101501]
[1646213256946,70.3056701,103.65,103.58,50.67101501]
[1646213257948,45.15521148,103.65,103.58,50.92101501]
[1646213258145,39.15521148,103.65,103.58,50.92101501]
[1646213259168,64.3056701,103.65,103.58,50.92101501]
[1646213261270,0.25,103.65,103.58,50.92101501]
[1646213261569,42.24029291,103.67,103.58,50.92101501]
[1646213261970,17.08983429,103.67,103.58,65.39891501]
[1646213262170,41.51364577,103.67,103.58,65.39891501]
[1646213262372,66.66410439,103.67,103.58,65.39891501]
[1646213263475,81.45727522,103.67,103.58,50.92101501]
[1646213263673,6.0,103.66,103.58,50.92101501]
[1646213263873,20.7307,103.66,103.58,50.92101501]
[1646213264072,70.3049701,103.66,103.58,50.92101501]
[1646213264474,72.66520439,103.66,103.58,50.67101501]
[1646213264674,3.86,103.65,103.58,50.67101501]
[1646213264876,6.0,103.64,103.58,50.67101501]
[1646213265374,6.0,103.64,103.57,23.3002]
[1646213265577,6.0,103.64,103.57,23.5502]
[1646213266176,20.484,103.64,103.57,23.5502]
[1646213266476,20.484,103.64,103.58,53.77449594]
[1646213267477,14.484,103.64,103.58,53.77449594]
[1646213267677,6.0,103.63,103.58,53.77449594]
[1646213268079,6.25,103.63,103.58,53.77449594]
[1646213268677,0.25,103.63,103.58,53.77449594]
[1646213268878,14.734,103.64,103.58,53.77449594]
[1646213270076,14.734,103.64,103.58,54.02449594]
[1646213270277,48.2773,103.67,103.58,149.78449594]
[1646213270278,6.22023429,103.67,103.58,149.78449594]
[1646213270478,8.86,103.67,103.58,54.02449594]
[1646213270781,29.65045862,103.67,103.58,54.02449594]
[1646213271178,51.82093677,103.67,103.58,54.02449594]
[1646213271377,3.86,103.66,103.58,54.02449594]
[1646213271577,18.5901,103.66,103.58,54.02449594]
[1646213271778,68.27127106,103.66,103.58,54.02449594]
[1646213272078,6.0,103.65,103.55,15.4]
[1646213272279,3.861,103.64,103.55,4.11]
[1646213272477,6.0,103.63,103.55,4.11]
[1646213272678,8.36023429,103.63,103.55,4.11]
[1646213272879,8.36023429,103.63,103.56,59.11372198]
[1646213273078,14.4858,103.62,103.56,59.36372198]
[1646213274278,14.4858,103.62,103.56,0.25]
[1646213274480,14.4858,103.62,103.55,4.11]
[1646213275279,14.4858,103.62,103.55,56.1883989]
[1646213276082,6.0,103.61,103.55,3.86]
[1646213276281,8.61023429,103.61,103.55,3.86]
[1646213276580,14.489,103.6,103.55,3.86]
[1646213276784,14.739,103.6,103.55,3.86]
[1646213277183,14.739,103.6,103.55,60.8911156]
[1646213278086,14.739,103.6,103.55,3.86]
[1646213279085,6.0,103.59,103.55,3.86]
[1646213279286,20.741,103.59,103.55,3.86]
[1646213279686,20.741,103.59,103.52,54.18984029]
[1646213279885,20.741,103.59,103.53,6.0]
[1646213280085,20.741,103.59,103.54,56.52929104]
[1646213280289,20.741,103.59,103.53,6.0]
[1646213280488,20.741,103.59,103.52,6.0]
[1646213280688,20.741,103.59,103.52,6.25]
[1646213281190,20.741,103.59,103.53,51.5521056]
[1646213283891,6.25,103.59,103.53,51.5521056]
[1646213286494,6.25,103.59,103.53,147.3121056]
[1646213286693,6.25,103.59,103.53,51.8021056]
[1646213286892,0.25,103.59,103.53,147.5621056]
[1646213287092,6.25,103.61,103.53,147.5621056]
[1646213287293,6.25,103.61,103.53,51.8021056]
[1646213288095,20.7372,103.61,103.53,51.8021056]
[1646213288292,45.26791244,103.61,103.53,51.8021056]
[1646213288492,45.26791244,103.61,103.53,51.5521056]
[1646213288694,45.26791244,103.61,103.53,51.8021056]
[1646213289094,45.26791244,103.61,103.53,51.5521056]
[1646213290296,74.28037106,103.61,103.53,51.5521056]
[1646213290998,74.28037106,103.61,103.51,24.8292]
[1646213291196,11.54,103.6,103.51,24.8292]
[1646213291400,14.4938,103.57,103.51,24.8292]
[1646213291598,6.0,103.56,103.51,24.8292]
[1646213291998,6.25,103.56,103.51,24.8292]
[1646213292198,6.25,103.56,103.49,67.10178999]
[1646213292399,6.25,103.56,103.49,22.9541]
[1646213292598,141.16860162,103.56,103.44,5.0]
[1646213292798,0.19276582,103.55,103.44,5.0]
[1646213292998,11.73276582,103.55,103.43,47.0097]
[1646213293198,6.0,103.54,103.43,142.7697]
[1646213293398,8.61023429,103.54,103.44,52.15205265]
[1646213294202,8.61023429,103.54,103.46,56.54499809]
[1646213295000,14.5001,103.52,103.46,56.54499809]
[1646213295200,14.7501,103.52,103.46,56.54499809]
[1646213295699,14.7501,103.52,103.46,56.79499809]
[1646213296501,14.7501,103.52,103.46,0.25]
[1646213296704,6.0,103.51,103.43,47.2597]
[1646213296901,6.25,103.51,103.43,47.2597]
[1646213297501,6.25,103.51,103.44,59.91605456]
[1646213297702,6.25,103.51,103.44,60.16605456]
[1646213297903,6.25,103.51,103.46,50.22370265]
[1646213298100,6.25,103.51,103.46,0.25]
[1646213299104,6.25,103.51,103.45,57.36522459]
[1646213299302,6.25,103.51,103.45,57.61522459]
[1646213299503,20.7514,103.51,103.45,57.61522459]
[1646213300124,20.7514,103.51,103.45,0.25]
[1646213300623,20.7514,103.51,103.44,6.25]
[1646213301023,20.7514,103.51,103.45,52.58093822]
[1646213301224,20.7514,103.51,103.45,52.83093822]
[1646213302425,6.25,103.51,103.45,52.83093822]
[1646213302627,6.0,103.5,103.45,52.83093822]
[1646213302826,6.0,103.52,103.45,52.83093822]
[1646213303126,6.25,103.52,103.45,60.85193822]
[1646213303325,0.25,103.52,103.45,60.85193822]
[1646213304130,20.7469,103.54,103.45,75.34923822]
[1646213304928,20.7469,103.54,103.45,67.32823822]
[1646213305130,44.73737815,103.54,103.45,67.32823822]
[1646213305930,10.114,103.54,103.46,95.76]
[1646213306130,63.63583677,103.56,103.46,95.76]
[1646213306131,42.34937815,103.56,103.47,54.61509099]
[1646213306330,38.48537815,103.56,103.47,54.86509099]
[1646213306530,38.48537815,103.56,103.47,150.62509099]
[1646213306732,3.864,103.57,103.47,150.62509099]
[1646213306929,90.9959,103.58,103.47,150.62509099]
[1646213307129,6.0,103.57,103.47,150.62509099]
[1646213307530,6.25,103.57,103.47,150.62509099]
[1646213307830,30.23964138,103.57,103.47,150.62509099]
[1646213308030,30.23964138,103.57,103.48,110.2533]
[1646213308229,30.23964138,103.57,103.49,55.27094758]
[1646213308430,30.23964138,103.57,103.49,55.52094758]
[1646213309333,30.23964138,103.57,103.49,165.77274758]
[1646213309732,24.23964138,103.57,103.49,165.77274758]
[1646213309931,0.25,103.57,103.49,70.01274758]
[1646213310131,6.0,103.57,103.49,70.01274758]
[1646213310335,6.25,103.57,103.49,70.01274758]
[1646213311938,20.743,103.57,103.49,55.27094758]
[1646213312137,76.10633429,103.57,103.49,55.27094758]
[1646213312334,72.24333429,103.57,103.49,55.27094758]
[1646213313035,3.863,103.56,103.49,55.27094758]
[1646213313234,14.4968,103.54,103.49,55.27094758]
[1646213313435,14.4968,103.54,103.48,27.1179]
[1646213313636,21.6198,103.54,103.48,27.1179]
[1646213314439,21.6198,103.54,103.49,60.36219072]
[1646213314635,14.7468,103.54,103.49,60.36219072]
[1646213316140,14.4968,103.54,103.49,60.36219072]
[1646213316339,2.36023429,103.56,103.49,60.61219072]
[1646213316540,75.33874138,103.58,103.49,60.61219072]
[1646213316742,6.0,103.57,103.49,60.61219072]
[1646213316943,8.36023429,103.57,103.49,60.61219072]
[1646213317540,8.61023429,103.57,103.49,60.61219072]
[1646213317742,47.09257567,103.57,103.49,60.36219072]
[1646213317941,3.863,103.56,103.49,60.36219072]
[1646213318140,6.0,103.55,103.48,27.1179]
[1646213318340,38.13864138,103.55,103.48,27.1179]
[1646213319046,38.13864138,103.55,103.48,3.863]
[1646213319346,40.49887567,103.55,103.49,59.6862679]
[1646213319545,45.49887567,103.55,103.49,59.6862679]
[1646213319743,45.49887567,103.55,103.48,3.863]
[1646213319943,59.65037567,103.55,103.48,3.863]
[1646213320143,69.14667567,103.55,103.48,3.863]
[1646213320843,69.14667567,103.55,103.48,51.50170551]
[1646213321244,5.0,103.54,103.48,51.50170551]
[1646213321446,6.0,103.53,103.48,51.50170551]
[1646213321645,6.25,103.53,103.48,51.50170551]
[1646213323146,6.25,103.53,103.48,3.863]
[1646213323348,26.4254,103.53,103.48,3.863]
[1646213323547,52.77527567,103.53,103.48,3.863]
[1646213323746,15.51454324,103.52,103.42,47.3087]
[1646213323947,27.30454324,103.52,103.43,6.0]
[1646213324146,6.0,103.51,103.44,51.76306454]
[1646213325147,14.5038,103.5,103.44,52.01306454]
[1646213325346,6.0,103.49,103.44,52.01306454]
[1646213325748,6.25,103.49,103.44,52.01306454]
[1646213326148,6.0,103.49,103.44,51.76306454]
[1646213326647,6.0,103.49,103.42,47.3087]
[1646213326849,20.754,103.49,103.42,47.3087]
[1646213327648,20.754,103.49,103.43,48.20406865]
[1646213328350,20.754,103.49,103.42,47.3087]
[1646213328951,25.754,103.49,103.42,47.3087]
[1646213329151,14.509,103.47,103.42,47.3087]
[1646213329350,6.0,103.46,103.42,47.3087]
[1646213329753,6.25,103.46,103.42,47.3087]
[1646213329951,6.25,103.46,103.41,59.02461621]
[1646213330152,14.7586,103.46,103.36,26.0491]
[1646213330351,22.5946,103.46,103.36,63.0846]
[1646213330553,6.0,103.45,103.36,63.0846]
[1646213330751,6.25,103.45,103.36,63.0846]
[1646213330952,6.25,103.45,103.36,48.5755]
[1646213331255,3.868,103.44,103.36,109.17595212]
[1646213331452,14.5155,103.41,103.36,109.17595212]
[1646213331655,20.3505,103.41,103.36,109.17595212]
[1646213332352,20.3505,103.41,103.32,18.383]
[1646213332551,20.3505,103.41,103.32,42.6365]
[1646213332752,20.5167,103.4,103.32,42.6365]
[1646213332952,20.7667,103.4,103.32,42.6365]
[1646213333153,20.7667,103.4,103.34,59.32004314]